bitfinex/quotes_ETHUSD_20220215
["timestamp","ask_amount","ask_price","bid_price","bid_amount"]
[1644927905611,1.61407,3098.7,3098.5,0.0032073]
[1644927905869,1.61407,3098.7,3098.1,2.415]
[1644927905870,1.1330194,3098.5,3098.1,2.415]
[1644927906072,1.1330194,3098.5,3098.0,1.1683]
[1644927906269,0.80709,3098.4,3098.0,1.1683]
[1644927906669,0.80709,3098.4,3097.8,3.2226]
[1644927906872,0.465,3098.8,3097.8,3.2226]
[1644927907269,0.80698,3098.5,3097.8,3.2226]
[1644927907470,0.80698,3098.5,3097.8,4.02962]
[1644927907971,0.80698,3098.5,3097.8,5.643606]
[1644927908172,0.80698,3098.5,3097.8,4.836616]
[1644927908573,0.80698,3098.5,3097.9,0.80701]
[1644927909174,0.80698,3098.5,3098.0,0.80701]
[1644927910907,0.80698,3098.5,3098.1,0.00348041]
[1644927911806,0.80698,3098.5,3098.1,0.80702]
[1644927912008,0.80698,3098.5,3098.1,0.00348037]
[1644927913008,0.80698,3098.5,3097.8,4.02971]
[1644927913367,0.80698,3098.5,3098.1,0.00348037]
[1644927914166,0.80698,3098.5,3097.8,3.2226]
[1644927914366,0.80698,3098.5,3098.1,0.00348037]
[1644927915369,0.80698,3098.5,3097.8,3.2226]
[1644927915573,0.80698,3098.5,3098.1,0.00348037]
[1644927915771,0.80698,3098.5,3098.1,0.81050037]
[1644927916571,0.80698,3098.5,3098.1,0.80702]
[1644927916771,1.0,3098.8,3098.3,0.80689]
[1644927916972,1.0,3099.0,3098.3,0.80689]
[1644927917229,1.0,3099.1,3098.3,0.80689]
[1644927917432,1.37205549,3099.0,3098.3,0.80689]
[1644927917629,1.17826573,3099.2,3098.3,0.80689]
[1644927917829,0.80689,3098.8,3098.3,2.4207055]
[1644927918028,1.61382,3099.0,3098.3,1.61382]
[1644927918629,2.61382,3099.0,3098.3,1.61382]
[1644927919129,2.61382,3099.0,3098.5,0.0034789]
[1644927919330,1.0,3098.9,3098.5,0.0034789]
[1644927919528,1.80687,3098.9,3098.5,0.0034789]
[1644927920232,0.80687,3098.9,3098.3,0.80693]
[1644927920432,1.80687,3098.9,3098.5,0.00347886]
[1644927921459,0.80687,3098.9,3098.4,0.80691]
[1644927921759,1.80687,3098.9,3098.5,0.00347886]
[1644927922157,2.10687,3098.9,3098.5,0.00347886]
[1644927922357,0.80698,3098.8,3098.5,0.00347886]
[1644927922661,0.80698,3098.8,3098.2,0.80697]
[1644927922957,0.80698,3098.8,3098.5,0.00347886]
[1644927923757,0.80698,3098.8,3098.3,0.80697]
[1644927923956,0.80698,3098.8,3098.5,0.0034789]
[1644927924359,1.10516302,3098.7,3098.5,0.0034789]
[1644927924611,0.80699,3098.6,3098.5,0.0034789]
[1644927924813,1.80699,3098.6,3098.5,0.0034789]
[1644927925016,1.80699,3098.6,3097.9,1.2242]
[1644927925216,1.80699,3098.6,3098.4,0.00347898]
[1644927925413,0.00695796,3098.3,3097.9,1.2242]
[1644927925613,0.80706,3098.2,3097.9,2.03122]
[1644927925819,0.00695796,3098.3,3098.0,0.80704]
[1644927926817,0.81394796,3098.3,3098.0,1.6140299]
[1644927927015,0.81394796,3098.3,3098.0,0.80704]
[1644927927617,0.81394796,3098.3,3098.0,0.81051931]
[1644927928019,0.81394796,3098.3,3098.1,0.80703]
[1644927928218,0.81394796,3098.3,3098.1,1.61407]
[1644927928470,0.81394796,3098.3,3098.1,0.80704]
[1644927928870,0.00695796,3098.3,3098.1,0.80704]
[1644927929069,0.00695796,3098.3,3098.2,0.3]
[1644927929972,0.00695796,3098.3,3098.1,0.81051923]
[1644927930173,0.81405796,3098.3,3098.1,0.81051923]
[1644927930376,0.81405796,3098.3,3098.1,0.00347923]
[1644927930772,1.11405796,3098.3,3098.1,0.00347923]
[1644927930973,0.30695796,3098.3,3097.9,0.3]
[1644927931172,0.00695796,3098.3,3098.0,0.00347927]
[1644927931373,0.3,3098.2,3098.0,0.00347927]
[1644927931573,0.30695796,3098.3,3098.0,0.00347927]
[1644927931873,0.00695796,3098.3,3098.0,0.00347927]
[1644927932108,0.00695796,3098.3,3098.0,1.91407]
[1644927932311,0.80706,3098.2,3098.0,1.91407]
[1644927932511,0.78875622,3098.2,3098.0,1.91754931]
[1644927933312,0.78875622,3098.2,3098.0,1.91407]
[1644927934117,2.1795508,3098.1,3097.9,0.00347935]
[1644927934313,3.4519008,3098.0,3097.9,0.00347935]
[1644927934714,3.4519008,3098.0,3097.2,0.0056802]
[1644927934915,1.0,3097.9,3097.8,0.00347943]
[1644927935317,2.6723308,3097.9,3097.8,0.00347943]
[1644927935522,3.68609491,3097.9,3097.8,0.00347943]
[1644927935717,3.68609491,3097.9,3097.2,0.0056802]
[1644927935960,2.9868408,3097.8,3097.2,0.0056802]
[1644927936264,2.9868408,3097.8,3097.7,0.00347955]
[1644927936265,1.61451,3097.8,3097.7,0.00347955]
[1644927936462,2.98696005,3097.8,3097.7,0.00347955]
[1644927936862,2.98696005,3097.8,3097.3,0.0056802]
[1644927937060,1.37245005,3097.7,3097.3,0.0056802]
[1644927937260,3.28693005,3097.7,3097.6,0.00347964]
[1644927938262,3.28693005,3097.7,3097.3,0.0056802]
[1644927938461,1.0,3097.9,3097.5,0.00347972]
[1644927938664,1.37237179,3097.8,3097.5,0.00347972]
[1644927939263,1.67237179,3097.8,3097.5,0.00347972]
[1644927939463,1.37237179,3097.7,3097.3,0.0056802]
[1644927939910,1.37237179,3097.7,3097.1,0.0056802]
[1644927940307,1.37237179,3097.7,3097.2,0.80727]
[1644927940508,1.37237179,3097.7,3097.3,0.0056802]
[1644927940909,2.17964179,3097.7,3097.1,0.0056802]
[1644927941110,1.37237179,3097.6,3097.1,0.0056802]
[1644927941511,0.3,3097.6,3097.3,0.80726]
[1644927941712,0.3,3097.6,3097.3,0.8129402]
[1644927941912,1.0,3097.9,3097.3,0.8129402]
[1644927942112,1.0,3097.9,3097.4,0.3]
[1644927942312,1.37241539,3097.8,3097.5,0.0056802]
[1644927942512,1.0,3097.9,3097.5,1.61408]
[1644927942713,1.37240134,3097.8,3097.6,0.0056802]
[1644927942914,0.00695796,3098.3,3097.6,0.0056802]
[1644927942915,1.37240134,3097.7,3097.6,0.0056802]
[1644927943461,1.37240134,3098.1,3097.6,0.0056802]
[1644927943762,1.37240134,3098.0,3097.6,0.8128102]
[1644927944462,1.37240134,3098.0,3097.6,0.81628585]
[1644927944663,1.37240134,3098.0,3097.6,0.00915585]
[1644927944862,0.80713,3097.8,3097.6,0.00915585]
[1644927945062,0.80713,3097.8,3097.6,0.00347565]
[1644927945462,0.80713,3097.8,3097.4,0.0056802]
[1644927945662,0.80713,3097.8,3097.5,0.00347573]
[1644927946061,0.80713,3097.8,3097.5,1.61775573]
[1644927946268,0.80713,3097.8,3097.6,0.0056802]
[1644927946463,0.80713,3097.8,3097.5,0.00347573]
[1644927946661,0.80713,3097.8,3097.1,0.3056802]
[1644927946861,0.80713,3097.8,3097.2,0.0056802]
[1644927947312,0.80713,3097.8,3097.4,1.61432]
[1644927947615,0.80713,3097.8,3097.5,0.0056802]
[1644927948011,0.80713,3097.8,3097.4,0.00347187]
[1644927948811,0.80713,3097.8,3097.5,1.61426]
[1644927949010,0.80713,3097.8,3097.6,0.0056802]
[1644927949212,0.80713,3097.8,3097.6,0.3056802]
[1644927949411,0.80713,3097.8,3097.6,0.0056802]
[1644927950212,0.80713,3097.8,3097.6,0.3056802]
[1644927950612,0.80713,3097.8,3097.6,0.0056802]
[1644927950867,0.80713,3097.8,3097.6,0.3056802]
[1644927951068,0.80713,3097.8,3097.5,0.00347179]
[1644927951069,0.8014498,3097.6,3097.5,0.00347179]
[1644927951266,0.80713,3097.7,3097.5,0.00347179]
[1644927951467,0.80713,3097.7,3097.1,0.815009]
[1644927951664,0.80713,3097.7,3097.4,0.00347191]
[1644927952263,1.61428,3097.7,3097.4,0.00347191]
[1644927952664,0.80713,3097.7,3097.3,0.8071324]
[1644927952868,0.80713,3097.7,3097.4,0.00347191]
[1644927953465,1.61427,3097.7,3097.4,0.00347191]
[1644927953866,1.61427,3097.7,3097.1,0.8150212]
[1644927954067,0.80713,3097.7,3097.4,0.00347191]
[1644927954468,1.61427,3097.7,3097.4,0.00347191]
[1644927955116,1.61427,3097.7,3097.1,0.007879]
[1644927955313,1.61427,3097.7,3097.4,0.00347191]
[1644927956113,0.80713,3097.7,3097.4,0.00347191]
[1644927956318,0.80713,3097.7,3097.1,0.007879]
[1644927956514,0.80713,3097.7,3097.4,0.00347191]
[1644927956813,0.80712,3097.8,3097.4,0.00347191]
[1644927956814,0.8071,3097.8,3097.4,0.81058491]
[1644927957414,1.37233911,3097.7,3097.4,0.807113]
[1644927957615,1.37233911,3097.7,3097.4,0.81058487]
[1644927958015,2.17946911,3097.7,3097.4,0.00347187]
[1644927958215,0.80713,3097.7,3097.4,0.00347187]
[1644927958663,0.80713,3097.7,3097.2,0.80713]
[1644927958868,0.80713,3097.7,3097.4,0.00347191]
[1644927958869,1.61428,3097.7,3097.4,0.00347191]
[1644927959278,0.80713,3097.7,3097.4,0.81061121]
[1644927959665,0.80711,3097.8,3097.4,0.81061121]
[1644927959864,0.80711,3097.8,3097.4,0.8071393]
[1644927959865,1.61423,3097.8,3097.4,0.8071393]
[1644927960064,1.61423,3097.8,3097.4,0.81054611]
[1644927960266,0.80711,3097.8,3097.4,0.00340681]
[1644927960464,1.37236657,3097.7,3097.4,0.00340681]
[1644927960667,0.25,3098.0,3097.4,0.00340681]
[1644927960865,0.61431311,3098.7,3097.6,0.01214273]
[1644927961065,2.55860201,3098.9,3097.7,0.465]
[1644927961066,1.37220166,3098.2,3097.7,0.465]
[1644927961267,0.61431311,3099.1,3097.7,0.765]
[1644927961468,0.61431311,3099.1,3097.8,4.44222]
[1644927961666,0.61431311,3099.2,3097.9,0.465]
[1644927961865,0.94343192,3098.9,3098.0,0.80689]
[1644927962128,0.80692,3098.8,3098.0,0.80689]
[1644927962528,0.61431311,3099.2,3098.0,1.61718634]
[1644927963229,1.74291,3099.1,3098.0,4.82253332]
[1644927963427,1.74291,3099.1,3098.0,4.81912698]
[1644927963630,2.7991791,3099.1,3098.0,4.82230821]
[1644927964228,1.1854791,3099.1,3098.1,0.80683]
[1644927964429,1.1854791,3099.1,3098.2,0.80682]
[1644927964730,2.22795311,3099.2,3098.2,0.80682]
[1644927965530,0.61431311,3099.2,3098.2,0.80682]
[1644927965730,0.61431311,3099.2,3098.2,3.96876945]
[1644927966568,0.80681,3099.1,3098.2,3.96876945]
[1644927967164,0.936019,3099.1,3098.2,3.96876945]
[1644927967364,0.129209,3099.1,3098.2,3.96876945]
[1644927967563,0.129209,3099.1,3098.2,0.80682]
[1644927968166,0.936059,3099.1,3098.2,0.80682]
[1644927968367,0.936059,3099.1,3098.1,2.4204932]
[1644927968570,0.129209,3099.1,3098.1,2.42368955]
[1644927969367,0.936049,3099.1,3098.1,2.42368955]
[1644927969614,0.80687,3098.7,3098.1,2.4204932]
[1644927970717,0.936049,3099.1,3098.1,2.4204932]
[1644927970718,5.796e-05,3098.3,3098.2,9.1]
[1644927970915,1.37175158,3099.0,3098.3,6.85]
[1644927971118,1.37175158,3099.0,3098.5,0.80665]
[1644927971318,1.37175158,3099.0,3098.5,1.57165]
[1644927971520,1.37175158,3099.0,3098.5,0.765]
[1644927972016,1.37175158,3099.0,3098.5,2.07831]
[1644927972418,1.37175158,3099.0,3098.7,0.80667]
[1644927973465,1.37175158,3099.0,3098.7,0.8066525]
[1644927974665,1.36362291,3099.0,3098.7,0.8066525]
[1644927974864,0.129209,3099.1,3098.7,0.8066525]
[1644927975265,0.129209,3099.1,3098.4,1.6136347]
[1644927975470,0.129209,3099.1,3098.3,1.159]
[1644927975471,1.46342279,3098.6,3098.3,1.159]
[1644927975664,1.76342279,3098.6,3098.3,1.159]
[1644927975867,2.40079266,3098.6,3098.2,0.00319542]
[1644927976067,3.20779266,3098.6,3098.2,0.00319542]
[1644927976266,3.50779266,3098.6,3098.2,0.00319542]
[1644927976667,3.20779266,3098.6,3097.8,2.4466]
[1644927976870,3.20779266,3098.6,3097.9,0.8069702]
[1644927977112,3.20779266,3098.6,3098.2,0.00319527]
[1644927977916,3.20779266,3098.6,3097.8,2.4466]
[1644927978122,3.20779266,3098.6,3098.2,0.00319525]
[1644927978317,3.50779266,3098.6,3098.2,0.00319525]
[1644927978717,4.31483266,3098.6,3098.2,0.00319525]
[1644927978919,0.80699,3098.5,3098.2,0.00319525]
[1644927979117,0.80701,3098.4,3097.8,2.4466]
[1644927979318,0.80701,3098.4,3098.2,0.00319525]
[1644927980220,0.80701,3098.4,3097.8,2.4466]
[1644927980618,0.80701,3098.4,3098.1,0.00319532]
[1644927981064,0.79999072,3098.4,3098.1,0.00319532]
[1644927981467,0.79999072,3098.4,3097.8,2.4466]
[1644927981863,0.79999072,3098.4,3098.1,0.00319538]
[1644927982663,0.79999072,3098.4,3097.8,3.2535572]
[1644927982873,0.79999072,3098.4,3098.1,0.00319538]
[1644927983064,1.05696,3098.5,3098.1,0.00319538]
[1644927983665,0.25,3098.5,3098.1,0.00319538]
[1644927983865,0.25,3098.5,3098.0,0.8069455]
[1644927984065,0.25,3098.5,3098.1,0.00319534]
[1644927985121,0.25,3098.5,3098.0,0.8069455]
[1644927985321,0.25,3098.5,3098.1,0.00319534]
[1644927986021,0.25,3098.5,3098.1,0.81006834]
[1644927986224,1.46342279,3098.6,3098.1,0.806873]
[1644927986621,1.46342279,3098.6,3098.1,0.81006834]
[1644927987423,1.46342279,3098.6,3098.1,0.806873]
[1644927987822,1.46342279,3098.6,3098.2,0.8100744]
[1644927988222,1.46342279,3098.6,3098.2,0.0031953]
[1644927988223,2.27033279,3098.6,3098.2,0.0031953]
[1644927988668,2.27033279,3098.6,3097.9,4.74845339]
[1644927989069,2.27033279,3098.6,3098.2,0.00319527]
[1644927989875,2.27033279,3098.6,3097.9,3.94159889]
[1644927990069,2.27033279,3098.6,3098.2,0.00319527]
[1644927990472,2.82033279,3098.6,3098.2,0.00319527]
[1644927991073,0.80695,3098.5,3097.8,2.4466]
[1644927991272,0.807,3098.4,3098.2,0.00319527]
[1644927992315,0.807,3098.4,3097.8,2.4466]
[1644927992520,0.80699,3098.3,3098.1,0.00319534]
[1644927992919,2.42105,3098.3,3098.1,0.00319534]
[1644927993324,4.565,3098.2,3098.1,0.00319534]
[1644927993618,0.80729,3098.0,3097.5,0.00565376]
[1644927993817,1.6147909,3097.9,3097.1,0.007879]
[1644927994020,0.80739,3097.4,3097.1,0.007879]
[1644927995024,1.61472,3097.4,3097.1,0.0110751]
[1644927995220,0.8073552,3097.3,3097.1,0.0110751]
[1644927995424,1.6147152,3097.3,3097.1,0.0110751]
[1644927995963,1.6136478,3097.3,3097.1,0.007879]
[1644927996164,0.80736,3097.3,3097.1,0.007879]
[1644927999467,2.61469,3097.4,3097.1,0.007879]
[1644928000218,1.61469,3097.4,3097.1,0.007879]
[1644928000616,0.80733,3097.4,3097.1,0.007879]
[1644928001115,0.80733,3097.4,3097.1,0.01107495]
[1644928001314,0.80733,3097.4,3097.1,0.01672871]
[1644928001913,0.80733,3097.4,3097.1,0.01353276]
[1644928002113,0.80733,3097.4,3097.1,0.01672871]
[1644928002720,0.80733,3097.4,3097.1,0.01107495]
[1644928003116,0.80733,3097.4,3097.1,0.007879]
[1644928003377,0.80708,3097.5,3097.1,0.01107512]
[1644928003578,0.80708,3097.5,3097.1,0.81820562]
[1644928003778,0.80708,3097.5,3097.2,0.00565376]
[1644928003979,0.80708,3097.5,3096.3,6.15809994]
[1644928004183,0.80708,3097.5,3096.1,7.86626805]
[1644928004184,5.17238115,3097.4,3096.1,7.86626805]
[1644928004384,6.2,3097.2,3095.6,0.15333124]
[1644928004589,0.80744,3097.0,3095.6,0.15333124]
[1644928004781,0.80744,3097.0,3095.7,0.04263175]
[1644928004782,1.6156175,3096.6,3095.7,0.04263175]
[1644928004979,3.965,3096.5,3095.7,0.04263175]
[1644928005180,2.55585713,3096.4,3095.7,0.04263175]
[1644928005385,1.67289071,3096.3,3095.7,0.04263175]
[1644928005583,1.61564,3096.2,3095.7,0.04263175]
[1644928005781,0.765,3096.1,3095.7,0.04263175]
[1644928005982,0.465,3096.1,3095.8,1.151149]
[1644928006183,2.42292,3096.2,3095.7,0.04263175]
[1644928006384,2.42292,3096.2,3095.9,0.04149491]
[1644928007422,3.42292,3096.2,3095.9,0.04149491]
[1644928007721,3.42292,3096.2,3095.8,0.04206333]
[1644928007722,0.80756,3096.1,3095.8,0.04206333]
[1644928008123,1.0,3096.2,3095.8,0.04206333]
[1644928008324,1.86487,3096.6,3095.9,0.00345444]
[1644928008325,1.0,3096.5,3095.9,0.00345444]
[1644928008526,0.3,3096.2,3095.9,0.00345444]
[1644928008725,0.80749,3096.2,3096.0,0.04092648]
[1644928008930,1.0,3096.5,3096.0,1.16005899]
[1644928009324,0.25,3096.6,3096.1,0.04035806]
[1644928010125,0.80744,3096.5,3096.1,0.04035806]
[1644928010325,1.80744,3096.5,3096.1,0.04035806]
[1644928010728,2.74023213,3096.5,3096.2,0.00345419]
[1644928010970,1.80744,3096.5,3096.2,0.00345419]
[1644928011572,1.80744,3096.5,3096.1,0.04035806]
[1644928011573,0.80746,3096.4,3096.1,0.04035806]
[1644928011972,0.80746,3096.4,3096.2,0.00345419]
[1644928012775,0.80746,3096.4,3095.8,0.04206333]
[1644928012974,0.80748,3096.3,3095.8,0.04206333]
[1644928013278,1.61497,3096.3,3095.8,0.04206333]
[1644928013476,1.91497,3096.3,3095.8,0.04206333]
[1644928013673,1.16060198,3096.1,3095.8,0.04206333]
[1644928013874,1.3,3096.2,3095.8,0.04206333]
[1644928014073,2.107591,3096.2,3095.8,0.04206333]
[1644928014275,2.1076,3096.2,3095.8,0.04206333]
[1644928014475,3.72278,3096.2,3095.8,0.04206333]
[1644928014720,0.3,3096.1,3095.8,0.04206333]
[1644928014917,1.33794023,3096.1,3095.8,0.04206333]
[1644928015318,2.84544023,3096.1,3095.8,0.04206333]
[1644928015520,1.03794023,3096.1,3095.8,0.04206333]
[1644928015751,1.0,3096.2,3095.8,0.04206333]
[1644928015922,0.80748,3096.3,3095.8,0.04206333]
[1644928016121,2.61487,3096.7,3095.8,0.04206333]
[1644928016321,0.6,3096.6,3095.8,0.04206333]
[1644928016519,1.85,3096.6,3095.8,0.04206333]
[1644928016720,1.82267758,3096.5,3095.9,0.00345049]
[1644928016921,0.80744,3096.4,3095.9,0.00345049]
[1644928017124,1.61502,3096.3,3096.0,0.04092648]
[1644928017823,1.61502,3096.3,3096.0,0.04437689]
[1644928018024,2.42252,3096.3,3096.0,0.04437689]
[1644928018223,2.42252,3096.3,3096.1,0.04035806]
[1644928018472,0.3,3096.2,3096.1,0.04035806]
[1644928018671,3.72252,3096.3,3096.1,0.04035806]
[1644928019769,3.42252,3096.3,3096.1,0.04035806]
[1644928020367,3.42252,3096.3,3096.0,0.00345037]
[1644928020568,1.61512,3096.2,3096.0,0.00345037]
[1644928020768,2.61512,3096.2,3096.1,0.04035806]
[1644928021569,2.61512,3096.2,3096.0,0.00345041]
[1644928021867,2.61512,3096.2,3096.1,0.04035806]
[1644928022719,6.11512,3096.2,3096.1,0.04035806]
[1644928022920,6.92275,3096.2,3096.0,0.00345041]
[1644928023123,0.80763,3096.1,3096.0,0.00345041]
[1644928023319,1.10763,3096.1,3096.0,0.00345041]
[1644928023721,2.91523,3096.1,3095.7,0.00557289]
[1644928023920,1.16058937,3095.8,3095.7,0.00557289]
[1644928024421,1.16058937,3095.8,3095.6,0.13261469]
[1644928024822,1.80757,3095.9,3095.6,0.13261469]
[1644928025221,0.80757,3095.9,3095.6,0.13261469]
[1644928025423,1.80757,3095.9,3095.6,0.13261469]
[1644928025622,1.0,3095.9,3095.6,0.13261469]
[1644928025871,0.80746,3096.0,3095.6,0.13261469]
[1644928026278,0.80746,3096.0,3095.7,0.91932974]
[1644928026676,0.80746,3096.0,3095.8,0.04206333]
[1644928030223,0.80746,3096.0,3095.7,0.04586854]
[1644928030420,0.80746,3096.0,3095.7,0.85331854]
[1644928030819,0.80746,3096.0,3095.7,0.85008175]
[1644928031022,0.80746,3096.0,3095.7,0.85331858]
[1644928032021,0.80746,3096.0,3095.7,0.85008175]
[1644928032323,0.80746,3096.0,3095.7,0.85336623]
[1644928032924,3.2,3096.2,3095.7,4.07666575]
[1644928033377,3.2,3096.2,3095.7,3.26593127]
[1644928033577,3.2,3096.2,3095.8,0.0032844]
[1644928033977,3.2,3096.2,3095.9,0.04149491]
[1644928033978,4.81484,3096.2,3095.9,0.04149491]
[1644928034779,1.3,3096.1,3095.9,0.04477923]
[1644928034978,2.10754,3096.1,3095.9,0.00328432]
[1644928035179,2.10754,3096.1,3096.0,0.04092648]
[1644928035881,1.80754,3096.1,3096.0,0.04092648]
[1644928036081,4.81484,3096.2,3096.1,3.1]
[1644928036082,4.00738,3096.2,3096.1,3.1]
[1644928036285,3.2,3096.2,3096.1,3.1]
[1644928036481,3.2,3096.2,3096.1,3.14035806]
[1644928036881,3.2,3096.2,3096.1,0.04035806]
[1644928038323,4.2,3096.2,3096.1,0.04035806]
[1644928038525,3.2,3096.2,3096.0,0.00317509]
[1644928038724,4.0075,3096.2,3096.1,0.04035806]
[1644928038925,5.0075,3096.2,3096.1,0.04035806]
[1644928039122,4.2,3096.2,3096.1,0.04035806]
[1644928040972,0.98604997,3096.1,3096.0,0.0030041]
[1644928041374,0.98604997,3096.1,3096.0,0.04393058]
[1644928041773,0.98604997,3096.1,3096.0,0.04092648]
[1644928042173,0.98604997,3096.1,3095.9,0.04449909]
[1644928042174,2.79362997,3096.1,3095.9,0.04449909]
[1644928042973,1.98604997,3096.1,3095.9,0.04149491]
[1644928043774,1.0,3096.1,3095.9,0.04149491]
[1644928044923,0.97926697,3096.0,3095.9,0.04149491]
[1644928046428,0.97377954,3096.0,3095.9,0.04149491]
[1644928047827,1.80753,3096.1,3095.9,0.04149491]
[1644928048028,1.0,3096.1,3095.9,0.04149491]
[1644928048229,3.5916481,3096.2,3095.9,0.04149491]
[1644928048480,3.2,3096.2,3095.9,0.04149491]
[1644928048677,3.2,3096.2,3096.0,0.465]
[1644928048678,2.08526186,3096.2,3096.0,0.465]
[1644928048979,0.13819997,3097.2,3097.0,1.19316701]
[1644928049178,0.61431311,3097.6,3097.1,0.8071]
[1644928049380,0.61431311,3097.6,3097.1,0.8071073]
[1644928049576,0.61431311,3097.6,3096.5,3.5]
[1644928049777,0.61431311,3097.6,3096.4,0.765]
[1644928049978,0.80718,3097.5,3096.4,0.765]
[1644928050178,2.17994046,3097.4,3096.4,1.065]
[1644928050378,1.37268046,3097.3,3096.8,0.00301027]
[1644928050682,2.45088025,3097.2,3096.8,0.00301027]
[1644928050877,2.18000046,3097.1,3096.8,0.00301027]
[1644928051079,1.37268046,3097.0,3096.8,0.00301027]
[1644928051378,2.98749046,3097.0,3096.2,4.31290735]
[1644928051578,1.37268046,3096.9,3096.8,0.00301031]
[1644928051981,2.37268046,3096.9,3096.8,0.00301031]
[1644928052642,2.37268046,3096.9,3096.7,0.8073002]
[1644928052839,1.37268046,3096.8,3096.7,0.81031058]
[1644928053239,0.129283,3097.4,3096.7,0.81031058]
[1644928053439,0.129283,3097.4,3096.7,1.61753058]
[1644928053440,1.37263119,3097.3,3096.7,1.61753058]
[1644928053740,1.37263119,3097.3,3096.7,1.6145202]
[1644928053942,1.37263119,3097.3,3096.9,0.00301018]
[1644928054342,2.17990119,3097.3,3096.9,0.00301018]
[1644928054547,2.17987119,3097.2,3096.9,0.00301018]
[1644928054742,0.00602036,3096.8,3096.2,0.00551735]
[1644928054944,1.37263119,3096.7,3096.2,0.00551735]
[1644928055341,2.18005119,3096.7,3096.2,0.00551735]
[1644928055541,1.37263119,3096.6,3096.2,0.00551735]
[1644928055743,0.00602036,3096.8,3096.2,0.00551735]
[1644928055972,2.18017994,3096.7,3096.2,0.81290515]
[1644928056168,1.37282994,3096.6,3096.2,0.81290515]
[1644928056369,1.37282994,3096.5,3096.2,0.81290515]
[1644928056670,0.80741,3096.6,3096.2,0.81290515]
[1644928056869,1.82092458,3096.7,3096.2,0.00551735]
[1644928057076,1.01356458,3096.7,3096.2,0.00551735]
[1644928057670,1.01356458,3096.7,3096.3,0.00301287]
[1644928057873,1.82092458,3096.7,3096.3,0.00301287]
[1644928058072,1.82092458,3096.7,3096.3,0.81037037]
[1644928058271,2.82092458,3096.7,3096.3,0.81037037]
[1644928058471,1.01356458,3096.7,3096.3,0.8073575]
[1644928058971,0.00602036,3096.8,3096.3,0.81037034]
[1644928059271,0.00602036,3096.8,3096.3,1.61769034]
[1644928059729,0.00602036,3096.8,3096.3,1.6146775]
[1644928059925,1.37278669,3096.7,3096.4,0.0030128]
[1644928060323,2.98755669,3096.7,3096.4,0.0030128]
[1644928060522,0.80735,3096.7,3096.4,0.0030128]
[1644928060724,1.61473,3096.7,3096.4,0.0030128]
[1644928060923,1.37284804,3096.6,3096.2,0.00551663]
[1644928061224,1.37284804,3096.6,3096.4,0.00300997]
[1644928061424,3.98776804,3096.6,3096.4,0.00300997]
[1644928061621,1.37284804,3096.5,3096.4,0.00300997]
[1644928061826,2.37284804,3096.5,3096.4,0.00300997]
[1644928062032,1.37284804,3096.5,3096.4,0.00300997]
[1644928062222,2.37284804,3096.5,3096.1,0.04035806]
[1644928062426,2.98787804,3096.4,3096.3,0.00301005]
[1644928062624,4.01766694,3096.4,3096.3,0.00301005]
[1644928062822,4.21015694,3096.4,3096.3,0.00301005]
[1644928063024,2.37284804,3096.4,3096.3,0.00301005]
[1644928063223,1.37284804,3096.4,3096.3,0.00301005]
[1644928063476,1.37284804,3096.4,3095.9,0.84890491]
[1644928063676,3.18027804,3096.6,3096.2,0.00301012]
[1644928063876,1.37292234,3096.5,3096.2,0.00301012]
[1644928064477,1.37292234,3096.5,3095.9,0.84890491]
[1644928064676,1.065957,3096.4,3096.0,0.00551663]
[1644928064877,1.873377,3096.4,3096.0,0.00551663]
[1644928065080,1.873377,3096.4,3096.2,0.00301041]
[1644928065279,2.873377,3096.4,3096.2,0.00301041]
[1644928065478,1.873377,3096.4,3096.2,0.00301041]
[1644928065677,0.80746,3096.3,3096.1,0.04035806]
[1644928065879,1.61494,3096.3,3096.1,0.04035806]
[1644928066080,1.61494,3096.3,3096.1,0.00301045]
[1644928066979,1.61494,3096.3,3096.0,0.00551663]
[1644928066980,0.80749,3096.2,3096.0,0.00551663]
[1644928067227,0.80749,3096.2,3096.0,0.00852715]
[1644928067427,0.80749,3096.2,3096.1,0.04035806]
[1644928067730,1.80748,3096.3,3096.1,0.04035806]
[1644928067925,0.80748,3096.3,3096.1,0.04035806]
[1644928068525,0.80748,3096.3,3096.0,0.00301048]
[1644928068725,1.873387,3096.4,3096.0,0.00301048]
[1644928068926,1.873387,3096.4,3096.1,0.04035806]
[1644928069127,4.2,3096.7,3096.1,0.04035806]
[1644928069326,1.3728325,3096.6,3096.1,0.04035806]
[1644928069727,1.3728325,3096.6,3096.1,0.00301044]
[1644928070230,1.3728325,3096.6,3096.1,3.13034696]
[1644928070626,1.3728325,3096.6,3096.1,3.12733652]
[1644928070873,1.3728325,3096.6,3096.2,0.00222392]
[1644928071775,1.3728325,3096.6,3095.9,0.04701154]
[1644928071974,1.3728325,3096.6,3096.2,0.00301036]
[1644928072174,1.13476221,3096.5,3096.2,0.00301036]
[1644928072375,1.3728325,3096.4,3096.2,0.00301036]
[1644928072975,1.36422791,3096.4,3095.9,0.04701154]
[1644928073177,1.13476221,3096.5,3096.1,0.00301043]
[1644928073377,0.80746,3096.4,3096.1,0.00301043]
[1644928073577,1.13476221,3096.5,3096.1,0.00301043]
[1644928073777,1.13476221,3096.5,3096.1,0.00852706]
[1644928074181,1.13476221,3096.5,3095.9,0.04701154]
[1644928074379,0.80742,3096.4,3095.9,0.04701154]
[1644928074623,0.80742,3096.4,3096.1,0.00301043]
[1644928075427,0.80742,3096.4,3095.9,0.04701154]
[1644928076325,4.90749,3096.3,3095.6,0.13261469]
[1644928076525,4.30772,3096.2,3095.6,0.13261469]
[1644928076726,0.99535646,3096.1,3095.6,0.13261469]
[1644928077225,0.99535646,3096.1,3095.4,0.00310056]
[1644928077226,1.29535646,3096.1,3095.4,0.00310056]
[1644928077527,0.80774,3095.9,3095.4,0.00310056]
[1644928077726,1.61559,3095.9,3095.4,0.00310056]
[1644928077929,2.61559,3095.9,3095.4,0.00310056]
[1644928078573,1.61569,3095.8,3095.4,0.00310056]
[1644928078773,1.61561,3095.8,3095.4,0.00310056]
[1644928079374,1.61561,3095.8,3095.4,0.00649096]
[1644928079876,0.80779,3095.6,3095.4,0.00649096]
[1644928080174,3.82841823,3095.5,3095.4,0.00310056]
[1644928080373,4.72172783,3095.5,3095.4,0.00310056]
[1644928080578,1.8933096,3095.5,3095.4,0.00310056]